[Event "Titled Tuesday Blitz October 11 Early 2022"]
[White "Dubov, Daniil"]
[Black "Hambleton, Aman"]
[WhiteFideId "24126055"]
[BlackFideId "2606577"]
[WhiteElo "2791"]
[BlackElo "2538"]
[Result "0-1"]
[Round "05"]
[TimeControl "180+1"]
[Date "2022.10.11"]
[WhiteClock "0:00:11"]
[BlackClock "0:00:05"]

1. d4 {[%clk 0:03:00]}  Nf6 {[%clk 0:02:53]} 2. Nf3 {[%clk 0:03:00]}  e6 {[%clk 0:02:39]} 3. c4 {[%clk 0:03:00]}  b6 {[%clk 0:02:36]} 4. g3 {[%clk 0:02:59]}  Ba6 {[%clk 0:02:33]} 5. Qc2 {[%clk 0:02:59]}  Bb7 {[%clk 0:02:22]} 6. Bg2 {[%clk 0:02:59]}  c5 {[%clk 0:02:13]} 7. O-O {[%clk 0:02:58]}  cxd4 {[%clk 0:02:12]} 8. Nxd4 {[%clk 0:02:58]}  Bxg2 {[%clk 0:02:11]} 9. Kxg2 {[%clk 0:02:59]}  Qc7 {[%clk 0:02:11]} 10. e4 {[%clk 0:02:58]}  Qb7 {[%clk 0:02:03]} 11. Nc3 {[%clk 0:02:57]}  d6 {[%clk 0:02:02]} 12. Re1 {[%clk 0:02:38]}  Nbd7 {[%clk 0:01:58]} 13. b3 {[%clk 0:02:32]}  Be7 {[%clk 0:01:56]} 14. Bb2 {[%clk 0:02:32]}  O-O {[%clk 0:01:56]} 15. Rad1 {[%clk 0:02:31]}  a6 {[%clk 0:01:56]} 16. a4 {[%clk 0:02:31]}  Rac8 {[%clk 0:01:51]} 17. h3 {[%clk 0:02:28]}  Rfe8 {[%clk 0:01:37]} 18. Kg1 {[%clk 0:02:28]}  Bf8 {[%clk 0:01:28]} 19. Qe2 {[%clk 0:02:15]}  Nc5 {[%clk 0:01:24]} 20. Qc2 {[%clk 0:02:11]}  d5 {[%clk 0:00:54]} 21. exd5 {[%clk 0:01:35]}  exd5 {[%clk 0:00:52]} 22. Nf5 {[%clk 0:01:33]}  dxc4 {[%clk 0:00:38]} 23. bxc4 {[%clk 0:01:33]}  Qf3 {[%clk 0:00:29]} 24. Nh4 {[%clk 0:01:14]}  Rxe1+ {[%clk 0:00:25]} 25. Rxe1 {[%clk 0:01:13]}  Qd3 {[%clk 0:00:26]} 26. Qe2 {[%clk 0:00:55]}  Re8 {[%clk 0:00:21]} 27. Qxd3 {[%clk 0:00:55]}  Nxd3 {[%clk 0:00:11]} 28. Rxe8 {[%clk 0:00:54]}  Nxe8 {[%clk 0:00:12]} 29. Ba1 {[%clk 0:00:55]}  Nd6 {[%clk 0:00:10]} 30. Nd5 {[%clk 0:00:54]}  Nxc4 {[%clk 0:00:09]} 31. Nf5 {[%clk 0:00:55]}  f6 {[%clk 0:00:05]} 32. Nd4 {[%clk 0:00:43]}  Nc5 {[%clk 0:00:04]} 33. Nc3 {[%clk 0:00:41]}  Kf7 {[%clk 0:00:03]} 34. Kf1 {[%clk 0:00:41]}  g6 {[%clk 0:00:03]} 35. g4 {[%clk 0:00:35]}  Bd6 {[%clk 0:00:02]} 36. Ke2 {[%clk 0:00:23]}  Be5 {[%clk 0:00:02]} 37. Nf3 {[%clk 0:00:17]}  Bxc3 {[%clk 0:00:02]} 38. Bxc3 {[%clk 0:00:18]}  Nxa4 {[%clk 0:00:03]} 39. Bd4 {[%clk 0:00:19]}  Nc5 {[%clk 0:00:02]} 40. g5 {[%clk 0:00:19]}  f5 {[%clk 0:00:02]} 41. h4 {[%clk 0:00:18]}  Ke6 {[%clk 0:00:03]} 42. h5 {[%clk 0:00:18]}  a5 {[%clk 0:00:03]} 43. hxg6 {[%clk 0:00:17]}  hxg6 {[%clk 0:00:04]} 44. Nh4 {[%clk 0:00:17]}  Kf7 {[%clk 0:00:04]} 45. Ng2 {[%clk 0:00:18]}  Nb3 {[%clk 0:00:04]} 46. Bc3 {[%clk 0:00:16]}  a4 {[%clk 0:00:04]} 47. Kd3 {[%clk 0:00:17]}  b5 {[%clk 0:00:05]} 48. Nf4 {[%clk 0:00:16]}  a3 {[%clk 0:00:05]} 49. Kc2 {[%clk 0:00:16]}  Nc5 {[%clk 0:00:05]} 50. Nd5 {[%clk 0:00:17]}  Ne4 {[%clk 0:00:04]} 51. Bd4 {[%clk 0:00:17]}  Nxg5 {[%clk 0:00:05]} 52. Nc7 {[%clk 0:00:16]}  Nd6 {[%clk 0:00:05]} 53. Kb3 {[%clk 0:00:14]}  Ne6 {[%clk 0:00:04]} 54. Be5 {[%clk 0:00:12]}  Nxc7 {[%clk 0:00:04]} 55. Bxd6 {[%clk 0:00:13]}  Nd5 {[%clk 0:00:04]} 56. Kxa3 {[%clk 0:00:13]}  Ke6 {[%clk 0:00:05]} 57. Bb8 {[%clk 0:00:13]}  f4 {[%clk 0:00:06]} 58. Kb3 {[%clk 0:00:13]}  Kf5 {[%clk 0:00:06]} 59. f3 {[%clk 0:00:12]}  Nf6 {[%clk 0:00:05]} 60. Kc2 {[%clk 0:00:12]}  Nh7 {[%clk 0:00:06]} 61. Kd3 {[%clk 0:00:12]}  Ng5 {[%clk 0:00:06]} 62. Ke2 {[%clk 0:00:13]}  Nf7 {[%clk 0:00:05]} 63. Bc7 {[%clk 0:00:11]}  Ne5 {[%clk 0:00:05]} 64. Bd6 {[%clk 0:00:12]}  Ke6 {[%clk 0:00:05]} 65. Bc7 {[%clk 0:00:11]}  b4 {[%clk 0:00:05]} 66. Ba5 {[%clk 0:00:10]}  b3 {[%clk 0:00:05]} 67. Bc3 {[%clk 0:00:11]}  Kd5 {[%clk 0:00:05]} 0-1


[Site "https://www.chess.com"]

[Event "Titled Tuesday Blitz October 11 Early 2022"]
[White "Dwilewicz, Katarzyna"]
[Black "Aaditya Dhingra"]
[WhiteFideId "1148486"]
[BlackFideId "25678191"]
[WhiteElo "2023"]
[BlackElo "2054"]
[Result "0-1"]
[Round "05"]
[TimeControl "180+1"]
[Date "2022.10.12"]
[WhiteClock "0:00:42"]
[BlackClock "0:00:45"]

1. e4 {[%clk 0:03:00]}  c6 {[%clk 0:02:59]} 2. d4 {[%clk 0:02:59]}  d5 {[%clk 0:02:59]} 3. e5 {[%clk 0:03:00]}  Bf5 {[%clk 0:02:57]} 4. h4 {[%clk 0:03:00]}  h5 {[%clk 0:02:56]} 5. Bd3 {[%clk 0:03:00]}  Bxd3 {[%clk 0:02:57]} 6. Qxd3 {[%clk 0:03:01]}  e6 {[%clk 0:02:57]} 7. Nf3 {[%clk 0:02:59]}  Qa5+ {[%clk 0:02:55]} 8. Bd2 {[%clk 0:02:59]}  Qa6 {[%clk 0:02:56]} 9. Qb3 {[%clk 0:02:52]}  c5 {[%clk 0:02:48]} 10. dxc5 {[%clk 0:02:42]}  Nd7 {[%clk 0:02:33]} 11. Nc3 {[%clk 0:02:41]}  Nxc5 {[%clk 0:02:31]} 12. Qb5+ {[%clk 0:02:40]}  Qxb5 {[%clk 0:02:29]} 13. Nxb5 {[%clk 0:02:41]}  Kd7 {[%clk 0:02:25]} 14. Ke2 {[%clk 0:02:39]}  a6 {[%clk 0:02:22]} 15. Nbd4 {[%clk 0:02:38]}  Ne4 {[%clk 0:02:16]} 16. Bf4 {[%clk 0:02:33]}  Ne7 {[%clk 0:02:15]} 17. Rhd1 {[%clk 0:02:31]}  Ng6 {[%clk 0:02:09]} 18. Be3 {[%clk 0:02:27]}  Rc8 {[%clk 0:02:07]} 19. Rac1 {[%clk 0:02:25]}  Ke8 {[%clk 0:02:04]} 20. g3 {[%clk 0:02:21]}  Be7 {[%clk 0:01:55]} 21. Rd3 {[%clk 0:01:57]}  Nc5 {[%clk 0:01:47]} 22. Rdd1 {[%clk 0:01:56]}  Nd7 {[%clk 0:01:46]} 23. Bf4 {[%clk 0:01:54]}  Nxf4+ {[%clk 0:01:42]} 24. gxf4 {[%clk 0:01:54]}  g6 {[%clk 0:01:43]} 25. c3 {[%clk 0:01:48]}  Bf8 {[%clk 0:01:39]} 26. Ng5 {[%clk 0:01:45]}  Ke7 {[%clk 0:01:38]} 27. Kf3 {[%clk 0:01:44]}  Bh6 {[%clk 0:01:36]} 28. Rg1 {[%clk 0:01:42]}  Rc4 {[%clk 0:01:31]} 29. a3 {[%clk 0:01:32]}  Rhc8 {[%clk 0:01:29]} 30. Rcd1 {[%clk 0:01:32]}  Nb6 {[%clk 0:01:22]} 31. Rd2 {[%clk 0:01:30]}  Rg8 {[%clk 0:01:16]} 32. Re2 {[%clk 0:01:28]}  Rc7 {[%clk 0:01:13]} 33. Rc2 {[%clk 0:01:27]}  Nc4 {[%clk 0:01:12]} 34. Re2 {[%clk 0:01:27]}  Ke8 {[%clk 0:01:08]} 35. Rc2 {[%clk 0:01:21]}  Bf8 {[%clk 0:01:06]} 36. Re2 {[%clk 0:01:21]}  Bc5 {[%clk 0:01:04]} 37. Rd1 {[%clk 0:01:16]}  Be7 {[%clk 0:01:02]} 38. Rg1 {[%clk 0:01:15]}  b5 {[%clk 0:01:00]} 39. Rg2 {[%clk 0:01:12]}  Bc5 {[%clk 0:00:58]} 40. Nb3 {[%clk 0:01:08]}  Bb6 {[%clk 0:00:58]} 41. Rg1 {[%clk 0:01:07]}  Ke7 {[%clk 0:00:58]} 42. Rd1 {[%clk 0:01:07]}  a5 {[%clk 0:00:57]} 43. Nd4 {[%clk 0:01:06]}  Bxd4 {[%clk 0:00:57]} 44. Rxd4 {[%clk 0:01:06]}  Rb8 {[%clk 0:00:56]} 45. Nh7 {[%clk 0:00:48]}  b4 {[%clk 0:00:55]} 46. axb4 {[%clk 0:00:48]}  axb4 {[%clk 0:00:55]} 47. cxb4 {[%clk 0:00:44]}  Rxb4 {[%clk 0:00:54]} 48. Nf6 {[%clk 0:00:45]}  Rxb2 {[%clk 0:00:46]} 49. Rxc4 {[%clk 0:00:43]}  Rb3+ {[%clk 0:00:45]} 50. Kg2 {[%clk 0:00:42]}  dxc4 {[%clk 0:00:45]} 0-1


[Site "https://www.chess.com"]

[Event "Titled Tuesday Blitz October 11 Early 2022"]
[White "Evdokimov, Alexey"]
[Black "Mills, Morgen"]
[WhiteFideId "24162450"]
[BlackFideId "2013304"]
[WhiteElo "2154"]
[BlackElo "2190"]
[Result "0-1"]
[Round "05"]
[TimeControl "180+1"]
[Date "2022.10.12"]
[WhiteClock "0:00:04"]
[BlackClock "0:00:52"]

1. e4 {[%clk 0:03:00]}  c6 {[%clk 0:02:57]} 2. d4 {[%clk 0:03:00]}  d5 {[%clk 0:02:58]} 3. e5 {[%clk 0:02:58]}  Bf5 {[%clk 0:02:58]} 4. Nf3 {[%clk 0:02:58]}  e6 {[%clk 0:02:58]} 5. Be2 {[%clk 0:02:58]}  h6 {[%clk 0:02:58]} 6. O-O {[%clk 0:02:58]}  Nd7 {[%clk 0:02:58]} 7. Be3 {[%clk 0:02:58]}  Ne7 {[%clk 0:02:59]} 8. Nbd2 {[%clk 0:02:58]}  Bh7 {[%clk 0:02:59]} 9. c4 {[%clk 0:02:58]}  dxc4 {[%clk 0:02:58]} 10. Nxc4 {[%clk 0:02:58]}  Nf5 {[%clk 0:02:57]} 11. Rc1 {[%clk 0:02:54]}  Nb6 {[%clk 0:02:58]} 12. Na5 {[%clk 0:02:51]}  Qd7 {[%clk 0:02:53]} 13. a4 {[%clk 0:02:29]}  Bb4 {[%clk 0:02:53]} 14. Nxc6 {[%clk 0:02:23]}  bxc6 {[%clk 0:02:47]} 15. Rxc6 {[%clk 0:02:23]}  O-O {[%clk 0:02:38]} 16. Bb5 {[%clk 0:02:21]}  Qe7 {[%clk 0:02:35]} 17. Qb3 {[%clk 0:02:11]}  Nd5 {[%clk 0:02:25]} 18. Rfc1 {[%clk 0:02:05]}  a5 {[%clk 0:02:12]} 19. h3 {[%clk 0:01:10]}  Qb7 {[%clk 0:02:11]} 20. g4 {[%clk 0:01:07]}  Nfxe3 {[%clk 0:02:10]} 21. fxe3 {[%clk 0:01:07]}  Rfc8 {[%clk 0:01:50]} 22. Kf2 {[%clk 0:00:57]}  Ne7 {[%clk 0:01:46]} 23. Rxc8+ {[%clk 0:00:48]}  Rxc8 {[%clk 0:01:46]} 24. Rxc8+ {[%clk 0:00:47]}  Qxc8 {[%clk 0:01:47]} 25. Qc4 {[%clk 0:00:38]}  Qxc4 {[%clk 0:01:41]} 26. Bxc4 {[%clk 0:00:38]}  Kf8 {[%clk 0:01:38]} 27. Ke2 {[%clk 0:00:38]}  Be4 {[%clk 0:01:35]} 28. Nd2 {[%clk 0:00:34]}  Bc6 {[%clk 0:01:25]} 29. b3 {[%clk 0:00:30]}  g5 {[%clk 0:01:23]} 30. Nf3 {[%clk 0:00:20]}  Nd5 {[%clk 0:01:19]} 31. h4 {[%clk 0:00:15]}  Nc3+ {[%clk 0:01:10]} 32. Kf2 {[%clk 0:00:15]}  Nd1+ {[%clk 0:01:05]} 33. Ke2 {[%clk 0:00:12]}  Bxf3+ {[%clk 0:00:57]} 34. Kxf3 {[%clk 0:00:12]}  gxh4 {[%clk 0:00:57]} 35. Kg2 {[%clk 0:00:09]}  Nxe3+ {[%clk 0:00:57]} 36. Kh3 {[%clk 0:00:09]}  Be1 {[%clk 0:00:55]} 37. Bd3 {[%clk 0:00:04]}  Nd5 {[%clk 0:00:52]} 0-1


[Site "https://www.chess.com"]

[Event "Titled Tuesday Blitz October 11 Early 2022"]
[White "Fernandez De La Vara, Arnaldo"]
[Black "Zemlyanskii, Ivan"]
[WhiteFideId "3518388"]
[BlackFideId "24249971"]
[WhiteElo "2387"]
[BlackElo "2107"]
[Result "0-1"]
[Round "05"]
[TimeControl "180+1"]
[Date "2022.10.11"]
[WhiteClock "0:01:00"]
[BlackClock "0:01:54"]

1. Nf3 {[%clk 0:03:00]}  Nf6 {[%clk 0:02:58]} 2. b3 {[%clk 0:03:01]}  d5 {[%clk 0:02:56]} 3. Bb2 {[%clk 0:03:02]}  c5 {[%clk 0:02:56]} 4. g3 {[%clk 0:03:02]}  e6 {[%clk 0:02:48]} 5. Bg2 {[%clk 0:03:03]}  Nc6 {[%clk 0:02:49]} 6. O-O {[%clk 0:03:03]}  Bd6 {[%clk 0:02:43]} 7. c4 {[%clk 0:02:53]}  d4 {[%clk 0:02:41]} 8. e3 {[%clk 0:02:52]}  e5 {[%clk 0:02:40]} 9. exd4 {[%clk 0:02:51]}  cxd4 {[%clk 0:02:41]} 10. a3 {[%clk 0:02:16]}  a5 {[%clk 0:02:41]} 11. b4 {[%clk 0:02:16]}  axb4 {[%clk 0:02:33]} 12. axb4 {[%clk 0:02:17]}  Rxa1 {[%clk 0:02:32]} 13. Bxa1 {[%clk 0:02:18]}  Nxb4 {[%clk 0:02:28]} 14. Nxe5 {[%clk 0:02:18]}  Bxe5 {[%clk 0:02:15]} 15. Qe2 {[%clk 0:01:48]}  Qe7 {[%clk 0:02:01]} 16. Re1 {[%clk 0:01:47]}  Nc2 {[%clk 0:01:59]} 17. Qxe5 {[%clk 0:01:30]}  Nxe1 {[%clk 0:01:58]} 18. Qb5+ {[%clk 0:01:15]}  Bd7 {[%clk 0:01:58]} 19. Qxb7 {[%clk 0:01:14]}  O-O {[%clk 0:01:55]} 20. Bxd4 {[%clk 0:00:59]}  Nxg2 {[%clk 0:01:55]} 21. Kxg2 {[%clk 0:01:00]}  Bh3+ {[%clk 0:01:54]} 0-1


[Site "https://www.chess.com"]

[Event "Titled Tuesday Blitz October 11 Early 2022"]
[White "Flis, Pawel"]
[Black "Tarasova, Viktoriya"]
[WhiteFideId "1112864"]
[BlackFideId "4175840"]
[WhiteElo "1836"]
[BlackElo "2182"]
[Result "0-1"]
[Round "05"]
[TimeControl "180+1"]
[Date "2022.10.12"]
[WhiteClock "0:01:22"]
[BlackClock "0:01:54"]

1. Nf3 {[%clk 0:02:54]}  Nf6 {[%clk 0:02:59]} 2. g3 {[%clk 0:02:54]}  b6 {[%clk 0:02:59]} 3. Bg2 {[%clk 0:02:54]}  Bb7 {[%clk 0:02:59]} 4. O-O {[%clk 0:02:54]}  c5 {[%clk 0:02:59]} 5. d3 {[%clk 0:02:55]}  e6 {[%clk 0:02:59]} 6. e4 {[%clk 0:02:54]}  d6 {[%clk 0:02:58]} 7. c3 {[%clk 0:02:52]}  Nbd7 {[%clk 0:02:58]} 8. Re1 {[%clk 0:02:51]}  Be7 {[%clk 0:02:59]} 9. Nbd2 {[%clk 0:02:49]}  O-O {[%clk 0:02:57]} 10. d4 {[%clk 0:02:49]}  cxd4 {[%clk 0:02:55]} 11. cxd4 {[%clk 0:02:50]}  Rc8 {[%clk 0:02:55]} 12. e5 {[%clk 0:02:43]}  Nd5 {[%clk 0:02:54]} 13. a3 {[%clk 0:02:41]}  dxe5 {[%clk 0:02:52]} 14. dxe5 {[%clk 0:02:39]}  Nc5 {[%clk 0:02:52]} 15. Ne4 {[%clk 0:02:22]}  Nxe4 {[%clk 0:02:49]} 16. Rxe4 {[%clk 0:02:23]}  Nc3 {[%clk 0:02:24]} 17. Qxd8 {[%clk 0:02:10]}  Rfxd8 {[%clk 0:02:24]} 18. Re1 {[%clk 0:02:01]}  Na4 {[%clk 0:02:20]} 19. Bg5 {[%clk 0:01:42]}  Bxg5 {[%clk 0:02:17]} 20. Nxg5 {[%clk 0:01:43]}  Bxg2 {[%clk 0:02:17]} 21. Kxg2 {[%clk 0:01:42]}  Nxb2 {[%clk 0:02:17]} 22. Rac1 {[%clk 0:01:35]}  Nd3 {[%clk 0:01:58]} 23. Rxc8 {[%clk 0:01:28]}  Nxe1+ {[%clk 0:01:57]} 24. Kf1 {[%clk 0:01:21]}  Rxc8 {[%clk 0:01:57]} 25. Kxe1 {[%clk 0:01:22]}  Rc3 {[%clk 0:01:54]} 0-1


[Site "https://www.chess.com"]

[Event "Titled Tuesday Blitz October 11 Early 2022"]
[White "Gilmanov, Mansur"]
[Black "Fernandez, Michael"]
[WhiteFideId "4166868"]
[BlackFideId "5803560"]
[WhiteElo "2377"]
[BlackElo "2110"]
[Result "1-0"]
[Round "05"]
[TimeControl "180+1"]
[Date "2022.10.12"]
[WhiteClock "0:01:53"]
[BlackClock "0:01:13"]

1. d4 {[%clk 0:03:00]}  Nf6 {[%clk 0:02:57]} 2. Bg5 {[%clk 0:02:58]}  Ne4 {[%clk 0:02:54]} 3. Bf4 {[%clk 0:02:58]}  c5 {[%clk 0:02:52]} 4. c3 {[%clk 0:02:47]}  Qb6 {[%clk 0:02:39]} 5. Qb3 {[%clk 0:02:45]}  Qxb3 {[%clk 0:02:35]} 6. axb3 {[%clk 0:02:45]}  cxd4 {[%clk 0:02:35]} 7. Bxb8 {[%clk 0:02:39]}  Rxb8 {[%clk 0:02:26]} 8. cxd4 {[%clk 0:02:38]}  a6 {[%clk 0:02:23]} 9. Nc3 {[%clk 0:02:38]}  Nf6 {[%clk 0:02:16]} 10. e4 {[%clk 0:02:38]}  d6 {[%clk 0:02:16]} 11. Nf3 {[%clk 0:02:31]}  Bg4 {[%clk 0:02:10]} 12. Be2 {[%clk 0:02:26]}  e6 {[%clk 0:02:08]} 13. h3 {[%clk 0:02:26]}  Bh5 {[%clk 0:02:06]} 14. Kd2 {[%clk 0:02:25]}  Be7 {[%clk 0:02:00]} 15. g4 {[%clk 0:02:25]}  Bg6 {[%clk 0:02:00]} 16. Ke3 {[%clk 0:02:25]}  O-O {[%clk 0:01:49]} 17. Nh4 {[%clk 0:02:04]}  d5 {[%clk 0:01:36]} 18. Nxg6 {[%clk 0:01:55]}  fxg6 {[%clk 0:01:26]} 19. e5 {[%clk 0:01:54]}  Nd7 {[%clk 0:01:23]} 20. f4 {[%clk 0:01:54]}  g5 {[%clk 0:01:15]} 21. f5 {[%clk 0:01:54]}  exf5 {[%clk 0:01:14]} 22. gxf5 {[%clk 0:01:55]}  Rxf5 {[%clk 0:01:13]} 23. Bg4 {[%clk 0:01:53]} 1-0


[Site "https://www.chess.com"]

[Event "Titled Tuesday Blitz October 11 Early 2022"]
[White "Goltsev, Dmitry"]
[Black "Hajiyev, Kanan"]
[WhiteFideId "24176710"]
[BlackFideId "13404148"]
[WhiteElo "2257"]
[BlackElo "2118"]
[Result "0-1"]
[Round "05"]
[TimeControl "180+1"]
[Date "2022.10.12"]
[WhiteClock "0:00:17"]
[BlackClock "0:00:12"]

1. e4 {[%clk 0:03:00]}  c6 {[%clk 0:02:53]} 2. d4 {[%clk 0:03:00]}  d5 {[%clk 0:02:54]} 3. Nc3 {[%clk 0:03:00]}  a6 {[%clk 0:02:51]} 4. Nf3 {[%clk 0:02:59]}  Bg4 {[%clk 0:02:50]} 5. e5 {[%clk 0:02:59]}  e6 {[%clk 0:02:50]} 6. h3 {[%clk 0:02:59]}  Bh5 {[%clk 0:02:48]} 7. g4 {[%clk 0:02:59]}  Bg6 {[%clk 0:02:48]} 8. Ne2 {[%clk 0:02:59]}  c5 {[%clk 0:02:48]} 9. c3 {[%clk 0:02:57]}  cxd4 {[%clk 0:02:48]} 10. cxd4 {[%clk 0:02:58]}  Bb4+ {[%clk 0:02:48]} 11. Nc3 {[%clk 0:02:58]}  Nc6 {[%clk 0:02:44]} 12. Be3 {[%clk 0:02:56]}  Qa5 {[%clk 0:02:35]} 13. Qd2 {[%clk 0:02:53]}  Nge7 {[%clk 0:02:14]} 14. a3 {[%clk 0:02:50]}  Rc8 {[%clk 0:02:10]} 15. Be2 {[%clk 0:02:46]}  h5 {[%clk 0:01:55]} 16. O-O {[%clk 0:02:38]}  Bxc3 {[%clk 0:01:54]} 17. bxc3 {[%clk 0:02:38]}  Qc7 {[%clk 0:01:40]} 18. Ng5 {[%clk 0:02:35]}  Na5 {[%clk 0:01:34]} 19. c4 {[%clk 0:02:16]}  Nb3 {[%clk 0:01:29]} 20. Qb4 {[%clk 0:02:15]}  Nxa1 {[%clk 0:01:25]} 21. Rxa1 {[%clk 0:02:14]}  dxc4 {[%clk 0:01:19]} 22. Bd2 {[%clk 0:01:57]}  Nd5 {[%clk 0:01:14]} 23. Qa4+ {[%clk 0:01:50]}  Qc6 {[%clk 0:01:09]} 24. Qd1 {[%clk 0:01:34]}  hxg4 {[%clk 0:01:09]} 25. Bxg4 {[%clk 0:01:30]}  c3 {[%clk 0:01:09]} 26. Rc1 {[%clk 0:01:21]}  c2 {[%clk 0:01:01]} 27. Qf3 {[%clk 0:01:19]}  Nc3 {[%clk 0:00:52]} 28. Qe3 {[%clk 0:01:11]}  Na2 {[%clk 0:00:46]} 29. Bf3 {[%clk 0:01:05]}  Qc7 {[%clk 0:00:38]} 30. d5 {[%clk 0:00:53]}  Nxc1 {[%clk 0:00:38]} 31. Bxc1 {[%clk 0:00:49]}  exd5 {[%clk 0:00:30]} 32. Bxd5 {[%clk 0:00:44]}  O-O {[%clk 0:00:20]} 33. e6 {[%clk 0:00:38]}  Rce8 {[%clk 0:00:17]} 34. Bb2 {[%clk 0:00:33]}  fxe6 {[%clk 0:00:12]} 35. Nxe6 {[%clk 0:00:31]}  Rxe6 {[%clk 0:00:11]} 36. Qxe6+ {[%clk 0:00:28]}  Bf7 {[%clk 0:00:10]} 37. Qf5 {[%clk 0:00:21]}  c1=Q+ {[%clk 0:00:10]} 38. Bxc1 {[%clk 0:00:18]}  Qxc1+ {[%clk 0:00:11]} 39. Kg2 {[%clk 0:00:17]}  Qc7 {[%clk 0:00:09]} 40. Be4 {[%clk 0:00:14]}  g6 {[%clk 0:00:06]} 41. Qf6 {[%clk 0:00:13]}  Qd8 {[%clk 0:00:06]} 42. Qe5 {[%clk 0:00:10]}  Re8 {[%clk 0:00:06]} 43. Qf4 {[%clk 0:00:10]}  Qe7 {[%clk 0:00:06]} 44. Bf3 {[%clk 0:00:09]}  Kg7 {[%clk 0:00:06]} 45. Qd4+ {[%clk 0:00:09]}  Qf6 {[%clk 0:00:06]} 46. Qb4 {[%clk 0:00:06]}  Re7 {[%clk 0:00:07]} 47. h4 {[%clk 0:00:06]}  Qe5 {[%clk 0:00:06]} 48. h5 {[%clk 0:00:05]}  a5 {[%clk 0:00:06]} 49. Qh4 {[%clk 0:00:04]}  gxh5 {[%clk 0:00:05]} 50. Kf1 {[%clk 0:00:03]}  Bg6 {[%clk 0:00:05]} 51. Kg2 {[%clk 0:00:03]}  Rf7 {[%clk 0:00:05]} 52. Qc4 {[%clk 0:00:03]}  Qf4 {[%clk 0:00:05]} 53. Qc3+ {[%clk 0:00:03]}  Qf6 {[%clk 0:00:03]} 54. Qe3 {[%clk 0:00:02]}  Qxf3+ {[%clk 0:00:03]} 55. Qxf3 {[%clk 0:00:02]}  Rxf3 {[%clk 0:00:04]} 56. Kxf3 {[%clk 0:00:03]}  Kf6 {[%clk 0:00:05]} 57. a4 {[%clk 0:00:04]}  b6 {[%clk 0:00:05]} 58. Kg3 {[%clk 0:00:05]}  Be8 {[%clk 0:00:05]} 59. Kh4 {[%clk 0:00:05]}  Bxa4 {[%clk 0:00:06]} 60. Kg3 {[%clk 0:00:06]}  Bc6 {[%clk 0:00:07]} 61. Kf4 {[%clk 0:00:07]}  a4 {[%clk 0:00:08]} 62. Ke3 {[%clk 0:00:08]}  a3 {[%clk 0:00:09]} 63. Kd4 {[%clk 0:00:09]}  a2 {[%clk 0:00:10]} 64. f4 {[%clk 0:00:10]}  a1=Q+ {[%clk 0:00:10]} 65. Kc4 {[%clk 0:00:10]}  Qd1 {[%clk 0:00:10]} 66. f5 {[%clk 0:00:11]}  Qd5+ {[%clk 0:00:10]} 67. Kb4 {[%clk 0:00:12]}  Qxf5 {[%clk 0:00:10]} 68. Kc3 {[%clk 0:00:12]}  Qd5 {[%clk 0:00:10]} 69. Kb2 {[%clk 0:00:13]}  Qc5 {[%clk 0:00:11]} 70. Kb3 {[%clk 0:00:13]}  Ke5 {[%clk 0:00:10]} 71. Ka2 {[%clk 0:00:14]}  Kd4 {[%clk 0:00:10]} 72. Kb2 {[%clk 0:00:15]}  Qc3+ {[%clk 0:00:10]} 73. Ka2 {[%clk 0:00:16]}  Qb4 {[%clk 0:00:10]} 74. Ka1 {[%clk 0:00:16]}  Kc3 {[%clk 0:00:11]} 75. Ka2 {[%clk 0:00:17]}  Qb2# {[%clk 0:00:12]} 0-1


[Site "https://www.chess.com"]

[Event "Titled Tuesday Blitz October 11 Early 2022"]
[White "Goryachkina, Aleksandra"]
[Black "Araujo Sanchez, Josue"]
[WhiteFideId "4147103"]
[BlackFideId "6416896"]
[WhiteElo "2484"]
[BlackElo "2370"]
[Result "0-1"]
[Round "05"]
[TimeControl "180+1"]
[Date "2022.10.12"]
[WhiteClock "0:00:02"]
[BlackClock "0:00:23"]

1. e4 {[%clk 0:03:00]}  c6 {[%clk 0:02:45]} 2. Nf3 {[%clk 0:02:57]}  d5 {[%clk 0:02:38]} 3. Nc3 {[%clk 0:02:58]}  dxe4 {[%clk 0:02:38]} 4. Nxe4 {[%clk 0:02:58]}  Nf6 {[%clk 0:02:39]} 5. Qe2 {[%clk 0:02:57]}  Bg4 {[%clk 0:02:31]} 6. Nxf6+ {[%clk 0:02:52]}  gxf6 {[%clk 0:02:32]} 7. h3 {[%clk 0:02:46]}  Bxf3 {[%clk 0:02:28]} 8. Qxf3 {[%clk 0:02:46]}  Qd5 {[%clk 0:02:27]} 9. Be2 {[%clk 0:02:35]}  Nd7 {[%clk 0:02:26]} 10. O-O {[%clk 0:02:27]}  O-O-O {[%clk 0:02:23]} 11. Qxd5 {[%clk 0:02:21]}  cxd5 {[%clk 0:02:23]} 12. d4 {[%clk 0:02:21]}  e6 {[%clk 0:02:22]} 13. Be3 {[%clk 0:02:16]}  Nb6 {[%clk 0:02:19]} 14. b3 {[%clk 0:02:14]}  Kb8 {[%clk 0:02:17]} 15. c4 {[%clk 0:02:13]}  dxc4 {[%clk 0:02:15]} 16. bxc4 {[%clk 0:02:13]}  f5 {[%clk 0:02:13]} 17. Rab1 {[%clk 0:02:09]}  Bg7 {[%clk 0:02:12]} 18. Rfd1 {[%clk 0:02:08]}  Rd7 {[%clk 0:02:11]} 19. d5 {[%clk 0:01:54]}  Rhd8 {[%clk 0:01:31]} 20. Bxb6 {[%clk 0:01:44]}  axb6 {[%clk 0:01:32]} 21. Bf3 {[%clk 0:01:44]}  Ka7 {[%clk 0:01:26]} 22. Rd3 {[%clk 0:01:38]}  Bf8 {[%clk 0:01:25]} 23. Rdb3 {[%clk 0:01:23]}  Bc5 {[%clk 0:01:24]} 24. a4 {[%clk 0:01:23]}  e5 {[%clk 0:01:23]} 25. Rb5 {[%clk 0:01:17]}  e4 {[%clk 0:01:22]} 26. Be2 {[%clk 0:01:15]}  Bd4 {[%clk 0:01:13]} 27. a5 {[%clk 0:01:11]}  bxa5 {[%clk 0:01:13]} 28. Rxa5+ {[%clk 0:01:06]}  Kb8 {[%clk 0:01:13]} 29. Rab5 {[%clk 0:01:03]}  Rc7 {[%clk 0:01:12]} 30. Kf1 {[%clk 0:00:54]}  Bc5 {[%clk 0:01:11]} 31. g3 {[%clk 0:00:48]}  Rd6 {[%clk 0:01:10]} 32. f4 {[%clk 0:00:18]}  Rg6 {[%clk 0:01:01]} 33. R1b3 {[%clk 0:00:17]}  Ra6 {[%clk 0:00:56]} 34. h4 {[%clk 0:00:15]}  Ra1+ {[%clk 0:00:55]} 35. Rb1 {[%clk 0:00:16]}  Rxb1+ {[%clk 0:00:55]} 36. Rxb1 {[%clk 0:00:15]}  b6 {[%clk 0:00:56]} 37. Bh5 {[%clk 0:00:10]}  Ra7 {[%clk 0:00:55]} 38. Be2 {[%clk 0:00:04]}  Kc8 {[%clk 0:00:54]} 39. d6 {[%clk 0:00:03]}  Kd7 {[%clk 0:00:53]} 40. Rd1 {[%clk 0:00:03]}  Ke6 {[%clk 0:00:54]} 41. Rd5 {[%clk 0:00:03]}  Bxd6 {[%clk 0:00:52]} 42. g4 {[%clk 0:00:01]}  Bxf4 {[%clk 0:00:33]} 43. Kg2 {[%clk 0:00:02]}  Ra2 {[%clk 0:00:28]} 44. gxf5+ {[%clk 0:00:02]}  Kf6 {[%clk 0:00:27]} 45. Kf1 {[%clk 0:00:02]}  Be3 {[%clk 0:00:23]} 46. h5 {[%clk 0:00:02]}  h6 {[%clk 0:00:23]} 47. Rb5 {[%clk 0:00:02]}  Bc5 {[%clk 0:00:22]} 48. Rb3 {[%clk 0:00:02]}  Kxf5 {[%clk 0:00:22]} 49. Rg3 {[%clk 0:00:02]}  Ra1+ {[%clk 0:00:19]} 50. Kg2 {[%clk 0:00:02]}  Rg1+ {[%clk 0:00:19]} 51. Kh3 {[%clk 0:00:02]}  Rxg3+ {[%clk 0:00:20]} 52. Kxg3 {[%clk 0:00:03]}  Kg5 {[%clk 0:00:21]} 53. Bg4 {[%clk 0:00:02]}  f5 {[%clk 0:00:22]} 54. Be2 {[%clk 0:00:02]}  f4+ {[%clk 0:00:23]} 55. Kh3 {[%clk 0:00:02]}  f3 {[%clk 0:00:23]} 56. Bf1 {[%clk 0:00:02]}  Kf4 {[%clk 0:00:23]} 0-1


[Site "https://www.chess.com"]